bitfinex-derivatives/quotes_SOLF0:USTF0_20250909
["timestamp","ask_amount","ask_price","bid_price","bid_amount"]
[1757446681222,7.03,216.91,216.79,5.2]
[1757446681927,12.20653977,216.91,216.79,5.2]
[1757446682325,7.03,216.88,216.76,3.87754497]
[1757446682528,7.03,216.88,216.75,5.2]
[1757446682824,12.20653977,216.88,216.75,5.2]
[1757446685126,7.03,216.88,216.75,5.2]
[1757446687324,12.20653977,216.88,216.75,5.2]
[1757446693137,7.03,216.86,216.75,5.2]
[1757446693932,7.49,216.85,216.71,3.87754497]
[1757446694235,7.49,216.85,216.72,5.19]
[1757446696339,3.87754497,216.83,216.72,5.19]
[1757446696537,7.49,216.82,216.72,5.19]
[1757446698239,12.66653977,216.82,216.72,5.19]
[1757446698537,7.49,216.79,216.69,5.19]
[1757446699342,7.49,216.83,216.72,5.19]
[1757446701540,12.66653977,216.87,216.75,5.19]
[1757446701733,7.49,216.87,216.75,5.19]
[1757446702544,16.54408474,216.87,216.75,5.19]
[1757446704542,12.66653977,216.87,216.75,5.19]
[1757446705642,12.66653977,216.87,216.75,9.06754497]
[1757446705943,12.66653977,216.87,216.76,5.19]
[1757446706847,7.49,216.87,216.76,5.19]
[1757446713043,7.49,216.87,216.79,5.19]
[1757446716553,7.49,216.87,216.75,3.87754497]
[1757446716754,12.66653977,216.87,216.75,9.06754497]
[1757446717357,12.66653977,216.87,216.76,5.19]
[1757446718855,5.17653977,216.86,216.76,5.19]
[1757446719052,7.49,216.85,216.76,5.19]
[1757446721461,12.66653977,216.85,216.76,5.19]
[1757446723764,7.49,216.85,216.76,5.19]
[1757446724365,7.49,216.85,216.79,7.67839337]
[1757446725166,12.66653977,216.85,216.79,7.67839337]
[1757446725369,7.49,216.85,216.79,7.67839337]
[1757446727570,12.66653977,216.85,216.79,7.67839337]
[1757446729168,7.49,216.85,216.79,7.67839337]
[1757446735081,9.96839337,216.85,216.77,2.47839337]
[1757446735378,2.47839337,216.83,216.76,5.2]
[1757446735578,2.47839337,216.81,216.76,5.2]
[1757446735776,2.47839337,216.81,216.64,315.23219796]
[1757446735777,7.42,216.78,216.7,5.2]
[1757446735982,2.47839337,216.77,216.7,5.2]
[1757446736376,7.42,216.76,216.7,5.2]
[1757446737082,2.47839337,216.75,216.67,2.47839337]
[1757446737382,2.47839337,216.75,216.66,7.67839337]
[1757446737383,7.42,216.74,216.66,7.67839337]
[1757446738180,7.42,216.74,216.66,5.2]
[1757446740285,2.47839337,216.71,216.66,5.2]
[1757446740485,7.42,216.7,216.63,7.67839337]
[1757446741887,7.42,216.74,216.67,2.47839337]
[1757446742090,7.42,216.74,216.68,5.2]
[1757446742991,2.47839337,216.73,216.66,2.47839337]
[1757446743194,7.42,216.72,216.66,2.47839337]
[1757446744093,7.42,216.72,216.65,7.67839337]
[1757446746693,7.42,216.72,216.65,5.2]
[1757446746895,7.42,216.72,216.65,7.67839337]
[1757446749394,7.42,216.72,216.59,77.94326847]
[1757446749395,7.42,216.66,216.59,2.47839337]
[1757446750096,7.42,216.66,216.58,5.2]
[1757446750401,7.42,216.64,216.58,5.2]
[1757446750607,7.42,216.64,216.56,2.47839337]
[1757446750796,2.47839337,216.63,216.56,2.47839337]
[1757446751890,7.42,216.64,216.55,5.2]
[1757446752093,2.47839337,216.63,216.55,7.67839337]
[1757446752297,7.42,216.62,216.55,7.67839337]
[1757446753093,7.42,216.66,216.59,2.47839337]
[1757446753998,0.03351566,216.65,216.62,5.2]
[1757446754498,7.34,216.7,216.63,2.47839337]
[1757446754691,7.34,216.7,216.65,7.67839337]
[1757446754891,7.34,216.7,216.66,5.2]
[1757446755793,7.34,216.7,216.65,2.47839337]
[1757446755995,7.34,216.73,216.67,2.47839337]
[1757446756697,7.34,216.73,216.7,5.2]
[1757446757002,7.34,216.76,216.7,5.2]
[1757446757695,7.34,216.78,216.71,2.47839337]
[1757446758700,0.03162211,216.77,216.71,2.47839337]
[1757446760191,0.03162211,216.77,216.7,5.2]
[1757446760399,7.34,216.76,216.72,2.47839337]
[1757446760599,0.03162211,216.77,216.72,2.47839337]
[1757446760899,7.34,216.76,216.7,2.47839337]
[1757446762292,7.34,216.76,216.71,2.47839337]
[1757446762495,0.03162211,216.77,216.71,2.47839337]
[1757446762691,7.34,216.76,216.71,2.47839337]
[1757446763199,0.03162211,216.77,216.71,2.47839337]
[1757446763499,7.37162211,216.77,216.71,2.47839337]
[1757446764701,7.37162211,216.77,216.69,2.47839337]
[1757446765095,2.47839337,216.76,216.69,2.47839337]
[1757446765402,7.34,216.73,216.67,2.47839337]
[1757446765997,7.34,216.71,216.67,7.67839337]
[1757446767403,7.34,216.71,216.67,2.47839337]
[1757446767603,7.34,216.71,216.68,5.2]
[1757446767902,0.03089058,216.72,216.67,2.47839337]
[1757446768102,7.34,216.71,216.67,2.47839337]
[1757446768306,7.34,216.71,216.67,7.67839337]
[1757446768604,7.34,216.71,216.67,2.47839337]
[1757446768800,7.34,216.71,216.67,7.67839337]
[1757446769602,7.34,216.71,216.68,5.2]
[1757446769999,7.34,216.71,216.61,10.18]
[1757446770000,0.03089058,216.72,216.7,5.2]
[1757446770205,0.03089058,216.72,216.71,7.67839337]
[1757446771308,0.03089058,216.72,216.69,2.51159991]
[1757446771806,7.34,216.71,216.69,2.51159991]
[1757446778412,7.34,216.71,216.69,0.03320654]
[1757446779812,0.03089058,216.72,216.69,0.03320654]
[1757446780213,7.34,216.71,216.69,0.03320654]
[1757446782207,7.34,216.71,216.69,5.23320654]
[1757446782411,7.34,216.71,216.69,0.03320654]
[1757446785511,7.68,216.71,216.69,0.03320654]
[1757446786610,7.68,216.71,216.59,9.06760225]
[1757446787816,0.0344461,216.67,216.59,9.06760225]
[1757446788015,7.7144461,216.67,216.59,9.06760225]
[1757446788417,7.7144461,216.67,216.59,3.87760225]
[1757446788719,7.7144461,216.67,216.6,5.22]
[1757446789823,7.7144461,216.67,216.6,9.09760225]
[1757446793116,7.7144461,216.67,216.61,5.22]
[1757446793318,0.0344461,216.67,216.63,3.87760225]
[1757446793521,7.7144461,216.67,216.64,5.22]
[1757446799116,0.0344461,216.67,216.64,5.22]
[1757446799316,7.7144461,216.67,216.64,5.22]
[1757446799518,7.68,216.66,216.64,5.22]
[1757446799717,0.0344461,216.67,216.64,5.22]
[1757446799917,7.7144461,216.67,216.64,5.22]
[1757446800317,7.68,216.66,216.6,3.87760225]
[1757446801921,7.68,216.66,216.59,5.22]
[1757446803918,7.68,216.66,216.54,3.85786444]
[1757446804121,7.68,216.66,216.51,67.67396567]
[1757446804122,7.68,216.66,216.55,3.87760225]
[1757446804424,0.03004903,216.63,216.55,3.87760225]
[1757446804623,7.68,216.62,216.55,3.87760225]
[1757446804829,7.68,216.62,216.55,9.09760225]
[1757446806722,7.68,216.62,216.51,4.68122316]
[1757446807221,7.68,216.62,216.51,3.87760225]
[1757446807426,7.68,216.58,216.51,3.87760225]
[1757446807620,7.68,216.58,216.51,9.09760225]
[1757446810622,7.68,216.58,216.51,3.87760225]
[1757446813227,7.68,216.58,216.48,9.09760225]
[1757446814330,7.68,216.58,216.52,5.24]
[1757446814623,7.68,216.58,216.52,9.11760225]
[1757446815019,7.39099214,216.57,216.53,5.24]
[1757446815423,7.36,216.57,216.53,5.24]
[1757446815732,7.39368244,216.57,216.52,3.87760225]
[1757446815932,7.39368244,216.57,216.53,5.24]
[1757446816129,7.39368244,216.57,216.52,3.87760225]
[1757446816524,7.39368244,216.57,216.53,5.24]
[1757446817030,0.03368244,216.57,216.52,3.87760225]
[1757446817226,0.03368244,216.57,216.53,5.24]
[1757446817630,0.03368244,216.57,216.52,3.87760225]
[1757446817931,7.39368244,216.57,216.52,3.87760225]
[1757446818132,0.03368244,216.57,216.52,3.87760225]
[1757446818333,0.03368244,216.57,216.53,5.24]
[1757446818632,0.03368244,216.57,216.52,3.87760225]
[1757446818833,0.03368244,216.57,216.53,5.24]
[1757446819229,7.39368244,216.57,216.52,3.87760225]
[1757446819631,7.39368244,216.57,216.53,5.24]
[1757446819937,7.39368244,216.57,216.52,3.87760225]
[1757446820336,7.39368244,216.57,216.53,5.24]
[1757446820531,7.39368244,216.57,216.52,3.87760225]
[1757446820931,7.39368244,216.57,216.53,5.24]
[1757446821132,7.39368244,216.57,216.52,3.87760225]
[1757446821937,7.39368244,216.57,216.53,5.24]
[1757446822436,7.39368244,216.57,216.52,3.87760225]
[1757446823042,7.39368244,216.57,216.53,5.24]
[1757446824444,7.36,216.56,216.52,9.11760225]
[1757446824839,7.36,216.56,216.53,5.24]
[1757446825844,7.39368244,216.57,216.53,5.24]
[1757446826044,0.03368244,216.57,216.52,3.87760225]
[1757446826544,7.39368244,216.57,216.53,5.24]
[1757446827740,7.36,216.56,216.53,5.24]
[1757446829343,7.36,216.56,216.48,5.24]
[1757446829546,0.03368244,216.57,216.46,311.02383438]
[1757446829944,0.03368244,216.57,216.46,310.22]
[1757446830143,7.36,216.56,216.46,310.22]
[1757446830340,0.03368244,216.57,216.46,310.22]
[1757446830542,7.36,216.56,216.45,9.11760225]
[1757446830747,7.36,216.56,216.42,9.11760225]
[1757446831051,7.36,216.55,216.42,5.24]
[1757446831248,7.39116436,216.51,216.42,5.24]
[1757446835550,7.39116436,216.51,216.41,3.87760225]
[1757446837755,7.39116436,216.51,216.39,5.24]
[1757446839858,11.26876661,216.51,216.39,5.24]
[1757446840851,7.39116436,216.51,216.4,3.87760225]
[1757446845162,7.39116436,216.51,216.39,5.24]
[1757446845463,7.39116436,216.51,216.39,9.11760225]
[1757446846461,7.39116436,216.51,216.41,2.48706256]
[1757446846462,7.71,216.49,216.41,2.48706256]
[1757446849957,7.71,216.49,216.39,5.24]
[1757446850257,7.71,216.49,216.4,2.48706256]
[1757446850561,7.71,216.45,216.4,2.48706256]
[1757446850862,7.74105168,216.46,216.4,2.48706256]
[1757446866374,7.74105168,216.46,216.41,5.24]
[1757446866576,0.03105168,216.46,216.45,5.24]
[1757446866978,7.71,216.53,216.45,5.24]
[1757446867178,7.71,216.47,216.44,7.72706256]
[1757446867378,0.03226735,216.48,216.44,2.48706256]
[1757446867673,0.03226735,216.48,216.43,2.48706256]
[1757446867872,0.03226735,216.48,216.43,7.72706256]
[1757446868079,7.71,216.51,216.43,7.72706256]
[1757446868278,7.71,216.47,216.43,7.72706256]
[1757446868480,0.03479419,216.48,216.43,7.72706256]
[1757446868775,7.71,216.47,216.43,7.72706256]
[1757446869580,7.71,216.47,216.44,5.24]
[1757446870475,7.71,216.47,216.43,2.48706256]
[1757446870774,7.71,216.47,216.4,7.72706256]
[1757446872779,7.71,216.47,216.42,2.48706256]
[1757446872979,0.03479419,216.48,216.42,2.48706256]
[1757446873385,7.71,216.47,216.42,2.48706256]
[1757446873581,7.55,216.47,216.42,2.48706256]
[1757446873884,0.03479419,216.48,216.42,2.48706256]
[1757446874580,7.58479419,216.48,216.42,7.73706256]
[1757446876485,7.58479419,216.48,216.42,2.48706256]
[1757446880083,7.55,216.47,216.43,0.02923057]
[1757446880281,0.03479419,216.48,216.43,0.02923057]
[1757446880886,7.55,216.47,216.43,0.02923057]
[1757446881081,0.03479419,216.48,216.43,0.02923057]
[1757446881775,7.55,216.47,216.43,0.02923057]
[1757446882175,0.03479419,216.48,216.43,0.02923057]
[1757446882479,7.55,216.47,216.43,0.02923057]
[1757446882879,0.03479419,216.48,216.43,0.02923057]
[1757446883074,7.55,216.47,216.43,0.02923057]
[1757446883281,0.03479419,216.48,216.43,0.02923057]
[1757446885287,7.55,216.47,216.43,0.02923057]
[1757446885484,0.03479419,216.48,216.43,0.02923057]
[1757446885684,7.55,216.47,216.43,0.02923057]
[1757446885881,0.03479419,216.48,216.43,0.02923057]
[1757446886088,7.55,216.47,216.43,0.02923057]
[1757446886284,0.03479419,216.48,216.43,0.02923057]
[1757446886685,7.55,216.47,216.43,0.02923057]
[1757446887382,0.03479419,216.48,216.43,0.02923057]
[1757446887888,7.55,216.47,216.43,0.02923057]
[1757446888088,0.03479419,216.48,216.43,0.02923057]
[1757446889978,7.55,216.47,216.44,5.25]
[1757446890183,0.03479419,216.48,216.43,0.02923057]
[1757446890184,7.58479419,216.48,216.43,0.02923057]
[1757446890590,7.55,216.47,216.44,5.25]
[1757446891288,0.03479419,216.48,216.44,2.48706256]
[1757446891886,0.03479419,216.48,216.45,5.25]
[1757446892088,0.03479419,216.48,216.44,2.48706256]
[1757446892284,0.03479419,216.48,216.43,0.02923057]
[1757446892591,0.03479419,216.48,216.45,5.25]
[1757446892782,7.58479419,216.48,216.45,5.25]
[1757446893288,7.58479419,216.48,216.44,2.48706256]
[1757446893690,7.58479419,216.48,216.45,5.25]
[1757446895081,0.03479419,216.48,216.45,5.25]
[1757446895793,0.03479419,216.48,216.44,2.48706256]
[1757446895993,0.03479419,216.48,216.45,5.25]
[1757446896386,7.58479419,216.48,216.45,5.25]
[1757446896595,7.55,216.47,216.43,0.02923057]
[1757446897092,0.03479419,216.48,216.43,0.02923057]
[1757446897287,7.55,216.47,216.43,0.02923057]
[1757446897488,7.55,216.47,216.43,5.27923057]
[1757446899386,0.03479419,216.48,216.43,5.27923057]
[1757446899893,7.55,216.47,216.43,5.27923057]
[1757446901798,7.55,216.47,216.44,5.25]
[1757446902096,0.03479419,216.48,216.43,0.02923057]
[1757446902296,7.55,216.47,216.43,0.02923057]
[1757446903789,7.5,216.47,216.43,0.02923057]
[1757446903993,0.03479419,216.48,216.43,0.02923057]
[1757446904194,7.5,216.47,216.43,0.02923057]
[1757446904591,0.03479419,216.48,216.43,0.02923057]
[1757446904795,7.5,216.47,216.43,0.02923057]
[1757446904995,0.03479419,216.48,216.43,0.02923057]
[1757446905796,7.5,216.47,216.43,0.02923057]
[1757446906197,0.03479419,216.48,216.43,0.02923057]
[1757446906395,7.5,216.47,216.43,0.02923057]
[1757446906595,0.03479419,216.48,216.43,0.02923057]
[1757446906996,7.5,216.47,216.43,0.02923057]
[1757446907192,5.21133396,216.48,216.43,0.02923057]
[1757446907392,7.5,216.47,216.43,0.02923057]
[1757446907592,0.03479419,216.48,216.43,0.02923057]
[1757446907994,7.5,216.47,216.43,0.02923057]
[1757446908199,0.03479419,216.48,216.43,0.02923057]
[1757446908400,7.5,216.47,216.43,0.02923057]
[1757446908600,0.03479419,216.48,216.43,0.02923057]
[1757446908898,7.5,216.47,216.43,5.27923057]
[1757446909101,0.03479419,216.48,216.43,5.27923057]
[1757446909299,7.5,216.47,216.43,5.27923057]
[1757446909501,0.03479419,216.48,216.43,5.27923057]
[1757446909997,7.5,216.47,216.43,5.27923057]
[1757446910197,7.5,216.46,216.43,5.27923057]
[1757446910995,5.17653977,216.47,216.43,5.27923057]
[1757446911196,5.21133396,216.48,216.43,5.27923057]
[1757446911590,7.5,216.47,216.43,0.02923057]
[1757446911796,5.21133396,216.48,216.43,0.02923057]
[1757446912197,12.67653977,216.47,216.43,0.02923057]
[1757446912395,5.17653977,216.46,216.43,0.02923057]
[1757446912594,7.5,216.44,216.43,0.02923057]
[1757446913998,7.5,216.46,216.43,5.27923057]
[1757446914304,7.5,216.47,216.43,5.27923057]
[1757446914896,0.03479419,216.48,216.43,0.02923057]
[1757446915095,7.5,216.47,216.43,0.02923057]
[1757446915492,0.03479419,216.48,216.43,0.02923057]
[1757446915693,7.5,216.47,216.43,0.02923057]
[1757446916096,0.03479419,216.48,216.43,0.02923057]
[1757446916097,5.21133396,216.48,216.43,0.02923057]
[1757446916295,7.5,216.47,216.43,0.02923057]
[1757446916502,5.21133396,216.48,216.43,0.02923057]
[1757446916999,7.5,216.47,216.43,0.02923057]
[1757446917203,5.21133396,216.48,216.43,0.02923057]
[1757446917400,7.5,216.47,216.44,5.25]
[1757446918001,7.5,216.47,216.43,0.02923057]
[1757446918202,7.5,216.47,216.44,5.25]
[1757446918597,7.5,216.47,216.43,0.02923057]
[1757446918794,0.03479419,216.48,216.43,5.27923057]
[1757446919404,7.5,216.47,216.43,5.27923057]
[1757446919604,0.03479419,216.48,216.43,5.27923057]
[1757446920101,7.5,216.47,216.43,5.27923057]
[1757446920301,0.03479419,216.48,216.43,5.27923057]
[1757446920502,7.5,216.47,216.43,5.27923057]
[1757446920703,0.03479419,216.48,216.43,5.27923057]
[1757446921204,7.5,216.47,216.43,5.27923057]
[1757446921396,0.03479419,216.48,216.43,5.27923057]
[1757446921795,7.5,216.47,216.43,5.27923057]
[1757446922005,0.03479419,216.48,216.43,5.27923057]
[1757446922305,0.03479419,216.48,216.44,5.25]
[1757446923103,0.03479419,216.48,216.43,0.02923057]
[1757446923606,0.03479419,216.48,216.44,5.25]
[1757446923807,0.03479419,216.48,216.43,0.02923057]
[1757446924402,7.5,216.47,216.43,0.02923057]
[1757446925807,12.67653977,216.47,216.43,0.02923057]
[1757446926605,5.17653977,216.47,216.43,0.02923057]
[1757446927309,7.5,216.46,216.43,0.02923057]
[1757446927499,5.21133396,216.48,216.43,0.02923057]
[1757446927701,7.5,216.47,216.43,0.02923057]
[1757446928110,5.21133396,216.48,216.43,0.02923057]
[1757446928711,12.67653977,216.47,216.43,0.02923057]
[1757446928904,7.5,216.45,216.43,0.02923057]
[1757446929710,5.17653977,216.46,216.43,0.02923057]
[1757446930010,7.5,216.45,216.43,0.02923057]
[1757446930206,5.17653977,216.46,216.43,0.02923057]
[1757446930409,7.5,216.45,216.43,0.02923057]
[1757446930607,7.5,216.46,216.43,0.02923057]
[1757446931408,3.88641659,216.44,216.43,0.02923057]
[1757446931612,11.38641659,216.44,216.43,0.02923057]
[1757446932312,7.5,216.43,216.32,5.28]
[1757446933506,12.71201566,216.4,216.28,5.28]
[1757446934112,12.71201566,216.4,216.29,5.29]
[1757446934313,7.53547589,216.4,216.29,5.29]
[1757446934509,7.53547589,216.4,216.32,5.29]
[1757446934914,7.5,216.4,216.32,5.29]
[1757446935114,0.03431795,216.38,216.32,5.29]
[1757446937716,7.33431795,216.38,216.32,5.29]
[1757446945033,7.33431795,216.38,216.29,5.29]
[1757446960136,11.18641659,216.37,216.23,5.28]
[1757446960739,0.03129446,216.32,216.23,5.28]
[1757446961039,0.03129446,216.32,216.23,9.16641659]
[1757446961341,0.03129446,216.32,216.24,5.28]
[1757446961536,7.33129446,216.32,216.24,5.28]
[1757446970344,7.33129446,216.32,216.25,2.49080667]
[1757446971947,7.33129446,216.32,216.24,5.28]
[1757446972246,7.33129446,216.32,216.24,7.77080667]
[1757446973343,2.49080667,216.31,216.23,5.29]
[1757446973643,7.42,216.3,216.24,2.49080667]
[1757446973949,7.42,216.28,216.25,5.29]
[1757446976048,0.03377982,216.29,216.24,2.49080667]
[1757446976243,7.45377982,216.29,216.24,2.49080667]
[1757446976448,7.45377982,216.29,216.25,5.29]
[1757446976938,7.45377982,216.29,216.24,2.49080667]
[1757446977242,7.45377982,216.29,216.25,5.29]
[1757446977448,0.03377982,216.29,216.25,5.29]
[1757446977649,7.42,216.28,216.25,5.29]
[1757446978148,7.42,216.28,216.24,2.49080667]
[1757446978345,7.42,216.28,216.25,5.29]
[1757446978643,0.03377982,216.29,216.24,2.49080667]
[1757446978841,0.03377982,216.29,216.27,5.29]
[1757446979049,0.03377982,216.29,216.18,5.29]
[1757446979250,0.03377982,216.29,216.28,5.29]
[1757446986960,0.03377982,216.29,216.28,7.78080667]
[1757446990455,0.03377982,216.29,216.26,2.49080667]
[1757446990656,7.45377982,216.29,216.26,7.78080667]
[1757446992357,7.45377982,216.29,216.26,2.49080667]
[1757446992551,0.03377982,216.29,216.24,2.49080667]
[1757446992753,0.03377982,216.29,216.26,2.49080667]
[1757446993061,7.45377982,216.29,216.26,7.78080667]
[1757446993463,7.42,216.28,216.18,5.29]
[1757446993763,7.46377982,216.29,216.23,7.77080667]
[1757446994162,7.43,216.29,216.23,7.77080667]
[1757446994459,7.46233976,216.28,216.24,5.28]
[1757446995065,7.46233976,216.28,216.23,2.49080667]
[1757446995260,7.46233976,216.28,216.24,5.28]
[1757446995463,7.46233976,216.28,216.23,2.49080667]
[1757446995666,7.46233976,216.28,216.24,5.28]
[1757446996462,7.46233976,216.28,216.23,2.49080667]
[1757446996969,7.46233976,216.28,216.24,5.28]
[1757446997467,7.46233976,216.28,216.24,7.77080667]
[1757446997869,7.46233976,216.28,216.24,2.49080667]
[1757446998069,7.46233976,216.28,216.24,7.77080667]
[1757446998468,7.46233976,216.28,216.24,2.49080667]
[1757446998676,7.46233976,216.28,216.24,7.77080667]
[1757446999370,7.46233976,216.28,216.25,5.28]
[1757446999772,0.03233976,216.28,216.27,5.28]
[1757447000472,0.03233976,216.28,216.26,2.49080667]
[1757447000674,0.03233976,216.28,216.27,5.28]
[1757447015292,7.43,216.35,216.27,5.28]
[1757447015494,7.43,216.35,216.26,2.49080667]
[1757447015495,7.43,216.35,216.32,7.77080667]
[1757447017796,0.03239657,216.36,216.21,25.11219796]
[1757447017797,0.03239657,216.36,216.34,2.49080667]
[1757447018094,7.43,216.39,216.35,5.28]
[1757447018294,7.43,216.39,216.36,7.77080667]
[1757447018495,0.03045097,216.37,216.36,7.77080667]
[1757447021304,0.03045097,216.37,216.36,2.49080667]
[1757447026101,0.03045097,216.37,216.23,5.19219796]
[1757447026399,5.17653977,216.42,216.35,2.49080667]
[1757447027001,0.02919784,216.41,216.35,2.49080667]
[1757447028810,0.02919784,216.41,216.27,5.24]
[1757447029108,7.66734644,216.43,216.34,2.49080667]
[1757447029510,0.03190463,216.36,216.34,2.49080667]
[1757447029809,7.66734644,216.43,216.34,2.49080667]
[1757447030006,0.03014601,216.37,216.34,2.49080667]
[1757447032411,0.03014601,216.37,216.32,3.88854318]
[1757447040415,0.03014601,216.37,216.29,3.88854318]
[1757447040717,9.06508295,216.4,216.26,3.88854318]
[1757447040908,5.17653977,216.39,216.26,3.88854318]
[1757447041113,0.02994308,216.35,216.26,3.88854318]
[1757447043617,0.02994308,216.35,216.23,3.88854318]
[1757447043918,5.17653977,216.36,216.23,3.88854318]
[1757447044320,0.03400956,216.31,216.23,3.88854318]
[1757447044817,0.03400956,216.31,216.26,3.88854318]
[1757447045019,0.03400956,216.31,216.23,3.88854318]
[1757447064229,0.03400956,216.31,216.2,75.67490195]
[1757447064230,0.03400956,216.31,216.26,3.88854318]
[1757447081545,0.03400956,216.31,216.27,5.29]
[1757447082848,0.03400956,216.31,216.29,3.88854318]
[1757447083049,0.03400956,216.31,216.3,5.29]
[1757447085542,7.52,216.37,216.32,3.88854318]
[1757447085742,7.52,216.37,216.33,5.29]
[1757447086137,7.52,216.37,216.32,3.88854318]
[1757447086340,7.52,216.37,216.33,5.29]
[1757447086547,7.52,216.37,216.32,3.88854318]
[1757447087248,7.52,216.37,216.33,5.29]
[1757447087449,5.17653977,216.4,216.33,5.29]
[1757447087648,7.12,216.39,216.33,5.29]
[1757447089546,56.18067587,216.43,216.35,3.88854318]
[1757447089747,7.12,216.42,216.36,5.29]
[1757447094348,7.12,216.42,216.39,7.77767977]
[1757447096252,7.12,216.45,216.39,7.77767977]
[1757447097348,7.12,216.45,216.39,2.48767977]
[1757447097553,12.29653977,216.45,216.39,2.48767977]
[1757447098149,7.12,216.45,216.39,2.48767977]
[1757447098656,12.29653977,216.45,216.39,2.48767977]
[1757447100353,14.78421954,216.45,216.37,2.48767977]
[1757447100856,9.60767977,216.45,216.37,2.48767977]
[1757447101059,14.78421954,216.45,216.37,2.48767977]
[1757447101358,9.60767977,216.45,216.37,2.48767977]
[1757447101554,14.78421954,216.45,216.37,2.48767977]
[1757447106554,2.48767977,216.41,216.33,2.48767977]
[1757447106762,7.12,216.4,216.33,2.48767977]
[1757447107860,7.12,216.4,216.32,2.48767977]
[1757447115768,7.12,216.4,216.33,5.29]
[1757447119475,7.12,216.4,216.34,2.48767977]
[1757447119679,7.12,216.4,216.35,5.29]
[1757447119977,7.65,216.42,216.37,5.29]
[1757447120173,7.65,216.43,216.37,5.29]
[1757447123077,2.48767977,216.42,216.34,7.77767977]
[1757447123274,7.65,216.41,216.34,7.77767977]
[1757447123474,12.82653977,216.41,216.34,5.29]
[1757447124177,5.17653977,216.4,216.34,5.29]
[1757447124378,7.65,216.4,216.34,5.29]
[1757447125276,7.65,216.4,216.34,7.77767977]
[1757447126584,2.48767977,216.43,216.26,9.56]
[1757447126585,12.82653977,216.43,216.37,5.29]
[1757447127383,7.65,216.43,216.38,2.48767977]
[1757447127878,7.65,216.43,216.39,5.29]
[1757447128284,7.65,216.43,216.38,2.48767977]
[1757447128484,7.65,216.43,216.27,5.19219796]
[1757447128684,7.65,216.43,216.41,5.29]
[1757447129679,12.82653977,216.45,216.4,2.48767977]
[1757447129888,7.65,216.44,216.41,5.29]
[1757447131288,7.65,216.45,216.41,5.29]
[1757447131589,5.17653977,216.47,216.41,5.29]
[1757447131785,5.17653977,216.46,216.41,5.29]
[1757447131982,5.17653977,216.46,216.4,2.48767977]
[1757447132179,12.82653977,216.45,216.38,2.48767977]
[1757447132487,12.82653977,216.43,216.36,2.48767977]
[1757447132684,12.82653977,216.43,216.35,5.29]
[1757447132685,7.65,216.42,216.35,2.48767977]
[1757447132884,5.17653977,216.41,216.33,2.48767977]
[1757447133189,7.65,216.39,216.33,2.48767977]
[1757447133586,7.65,216.39,216.35,7.77767977]
[1757447135593,5.17653977,216.41,216.35,7.77767977]
[1757447136187,7.65,216.4,216.35,7.77767977]
[1757447137085,5.17653977,216.41,216.35,7.77767977]
[1757447137285,7.65,216.4,216.35,7.77767977]
[1757447137494,5.17653977,216.41,216.35,7.77767977]
[1757447137891,7.65,216.4,216.35,7.77767977]
[1757447138798,7.65,216.4,216.35,2.48767977]
[1757447139094,10.13767977,216.4,216.33,2.48767977]
[1757447139294,15.31421954,216.4,216.32,2.48767977]
[1757447139701,7.65,216.38,216.31,5.29]
[1757447139898,7.65,216.38,216.31,7.77767977]
[1757447141292,7.65,216.38,216.33,2.48767977]
[1757447141492,12.82653977,216.4,216.35,2.48767977]
[1757447141693,7.65,216.39,216.36,5.29]
[1757447141889,7.65,216.39,216.35,2.48767977]
[1757447142094,12.82653977,216.42,216.36,5.29]
[1757447143006,7.65,216.42,216.38,5.29]
[1757447143706,7.57,216.42,216.38,5.29]
[1757447144101,5.17653977,216.44,216.38,5.28]
[1757447146410,12.74653977,216.45,216.38,5.28]
[1757447146614,12.74653977,216.45,216.39,2.48767977]
[1757447146810,12.74653977,216.45,216.39,7.76767977]